[Event "*** Titled Tuesday Blitz"]
[Site "Chess.com"]
[Date "2020.04.21"]
[Round "6"]
[White "XiaoKangZhong"]
[Black "Qingdom"]
[Result "1-0"]
[WhiteElo "2361"]
[BlackElo "2195"]
[TimeControl "180+1"]
[EndTime "11:09:04 PDT"]
[Termination "XiaoKangZhong won by checkmate"]

1. e4 {[%clk 0:03:00.9]} 1... c5 {[%clk 0:02:59.3]} 2. c3 {[%clk 0:03:00.1]}
2... Nf6 {[%clk 0:02:58.6]} 3. e5 {[%clk 0:03:00.3]} 3... Nd5 {[%clk 0:02:58.6]}
4. d4 {[%clk 0:03:01]} 4... cxd4 {[%clk 0:02:58.9]} 5. cxd4 {[%clk 0:03:01.9]}
5... d6 {[%clk 0:02:59.4]} 6. Nf3 {[%clk 0:03:02]} 6... dxe5 {[%clk 0:02:59.4]}
7. Nxe5 {[%clk 0:02:44.2]} 7... e6 {[%clk 0:02:57.9]} 8. Bb5+ {[%clk 0:02:41]}
8... Nd7 {[%clk 0:02:56.9]} 9. O-O {[%clk 0:02:33.3]} 9... Bd6 {[%clk
0:02:53.6]} 10. Qg4 {[%clk 0:02:11.1]} 10... Qf6 {[%clk 0:01:00.6]} 11. Nxd7
{[%clk 0:01:16.7]} 11... Bxd7 {[%clk 0:01:00]} 12. Bxd7+ {[%clk 0:01:17]} 12...
Kxd7 {[%clk 0:01:00]} 13. Nc3 {[%clk 0:01:17.7]} 13... Nxc3 {[%clk 0:00:58]} 14.
bxc3 {[%clk 0:01:18.6]} 14... Rhc8 {[%clk 0:00:55.4]} 15. Bd2 {[%clk 0:01:11.5]}
15... Ke8 {[%clk 0:00:47.3]} 16. Qe4 {[%clk 0:00:59.6]} 16... Rab8 {[%clk
0:00:38.5]} 17. Qxh7 {[%clk 0:00:52.9]} 17... g6 {[%clk 0:00:36.2]} 18. Qh6
{[%clk 0:00:44.9]} 18... Kd7 {[%clk 0:00:32.4]} 19. h3 {[%clk 0:00:41.8]} 19...
b5 {[%clk 0:00:29.7]} 20. Rfc1 {[%clk 0:00:36.5]} 20... Rc4 {[%clk 0:00:28]} 21.
Qe3 {[%clk 0:00:32]} 21... Rbc8 {[%clk 0:00:24.6]} 22. Rcb1 {[%clk 0:00:27.2]}
22... a6 {[%clk 0:00:24]} 23. a4 {[%clk 0:00:23.5]} 23... Rxa4 {[%clk
0:00:21.6]} 24. Rxa4 {[%clk 0:00:23.1]} 24... bxa4 {[%clk 0:00:22]} 25. Rb7+
{[%clk 0:00:23.2]} 25... Rc7 {[%clk 0:00:22.5]} 26. Qe4 {[%clk 0:00:20.7]} 26...
Qf5 {[%clk 0:00:22.4]} 27. Rxc7+ {[%clk 0:00:15.7]} 27... Kxc7 {[%clk
0:00:22.2]} 28. Qxf5 {[%clk 0:00:14.3]} 28... exf5 {[%clk 0:00:22.1]} 29. c4
{[%clk 0:00:15]} 29... a3 {[%clk 0:00:20.6]} 30. Bc3 {[%clk 0:00:14.9]} 30... a2
{[%clk 0:00:19.8]} 31. c5 {[%clk 0:00:14.9]} 31... Be7 {[%clk 0:00:19.5]} 32.
Kf1 {[%clk 0:00:15.2]} 32... Kc6 {[%clk 0:00:19.5]} 33. Ke2 {[%clk 0:00:15.7]}
33... Kd5 {[%clk 0:00:19.8]} 34. Kd3 {[%clk 0:00:15.8]} 34... Bf6 {[%clk
0:00:19.6]} 35. Ba1 {[%clk 0:00:15.9]} 35... a5 {[%clk 0:00:18.8]} 36. f3 {[%clk
0:00:15.9]} 36... a4 {[%clk 0:00:17.7]} 37. f4 {[%clk 0:00:15.9]} 37... Bd8
{[%clk 0:00:17.1]} 38. Bb2 {[%clk 0:00:13.7]} 38... Ba5 {[%clk 0:00:16.9]} 39.
Ba1 {[%clk 0:00:13.9]} 39... Bb4 {[%clk 0:00:16.6]} 40. g4 {[%clk 0:00:10.4]}
40... Ba3 {[%clk 0:00:16.2]} 41. gxf5 {[%clk 0:00:10.5]} 41... gxf5 {[%clk
0:00:16.3]} 42. h4 {[%clk 0:00:10.7]} 42... Bc1 {[%clk 0:00:16.6]} 43. h5 {[%clk
0:00:09.9]} 43... a3 {[%clk 0:00:17]} 44. h6 {[%clk 0:00:09.3]} 44... Bb2 {[%clk
0:00:17.2]} 45. h7 {[%clk 0:00:08.9]} 45... Bxa1 {[%clk 0:00:17.6]} 46. h8=Q
{[%clk 0:00:09.4]} 46... Bb2 {[%clk 0:00:15.9]} 47. Qd8+ {[%clk 0:00:09.4]}
47... Kc6 {[%clk 0:00:15.8]} 48. Qd6+ {[%clk 0:00:09.2]} 48... Kb5 {[%clk
0:00:16.1]} 49. Qb6+ {[%clk 0:00:08.3]} 49... Ka4 {[%clk 0:00:16.7]} 50. Qa6+
{[%clk 0:00:08.5]} 50... Kb3 {[%clk 0:00:17.1]} 51. Qc4# {[%clk 0:00:08.7]} 1-0

[Event "*** Titled Tuesday Blitz"]
[Site "Chess.com"]
[Date "2020.04.21"]
[Round "6"]
[White "FLamps8"]
[Black "Kezin_Roman"]
[Result "0-1"]
[WhiteElo "2533"]
[BlackElo "2741"]
[TimeControl "180+1"]
[EndTime "11:09:05 PDT"]
[Termination "Kezin_Roman won by resignation"]

1. d4 {[%clk 0:03:00.9]} 1... d5 {[%clk 0:02:59.7]} 2. Bf4 {[%clk 0:03:00.9]}
2... c5 {[%clk 0:02:58.9]} 3. e3 {[%clk 0:03:01.3]} 3... Nc6 {[%clk 0:02:59.2]}
4. c3 {[%clk 0:03:01.4]} 4... Qb6 {[%clk 0:02:59.2]} 5. Qc2 {[%clk 0:02:59.3]}
5... Nf6 {[%clk 0:02:54.8]} 6. Nd2 {[%clk 0:02:57.7]} 6... Bg4 {[%clk
0:02:51.7]} 7. Ngf3 {[%clk 0:02:56.1]} 7... e6 {[%clk 0:02:51.8]} 8. Be2 {[%clk
0:02:45.9]} 8... Be7 {[%clk 0:02:51.2]} 9. O-O {[%clk 0:02:43.9]} 9... O-O
{[%clk 0:02:50.7]} 10. Rac1 {[%clk 0:02:33.6]} 10... Rac8 {[%clk 0:02:49.7]} 11.
Nb3 {[%clk 0:02:16]} 11... c4 {[%clk 0:02:38.9]} 12. Nbd2 {[%clk 0:02:02.8]}
12... Bf5 {[%clk 0:02:38.5]} 13. Qd1 {[%clk 0:02:00]} 13... Qxb2 {[%clk
0:02:38]} 14. Nh4 {[%clk 0:01:58.1]} 14... Ba3 {[%clk 0:02:25.9]} 15. Ra1 {[%clk
0:01:18.1]} 15... Bc2 {[%clk 0:02:19.9]} 16. Qe1 {[%clk 0:01:14.1]} 16... Qxc3
{[%clk 0:02:19.9]} 17. Rc1 {[%clk 0:00:57.2]} 17... Bxc1 {[%clk 0:01:54.5]} 18.
Qxc1 {[%clk 0:00:58.1]} 18... Nb4 {[%clk 0:01:54.7]} 19. Nb1 {[%clk 0:00:44.4]}
19... Qa1 {[%clk 0:01:54.5]} 20. Bd6 {[%clk 0:00:44.2]} 20... Qxb1 {[%clk
0:01:43.6]} 21. Qxb1 {[%clk 0:00:42.8]} 21... Bxb1 {[%clk 0:01:44.5]} 22. Rxb1
{[%clk 0:00:42.1]} 22... Nxa2 {[%clk 0:01:41.6]} 23. Bxf8 {[%clk 0:00:41.1]}
23... Nc3 {[%clk 0:01:41.4]} 24. Rxb7 {[%clk 0:00:32.9]} 24... Nxe2+ {[%clk
0:01:40.2]} 25. Kf1 {[%clk 0:00:32.9]} 25... Kxf8 {[%clk 0:01:34.3]} 26. Kxe2
{[%clk 0:00:31.7]} 26... Ra8 {[%clk 0:01:34.2]} 27. Nf3 {[%clk 0:00:29.3]} 27...
a5 {[%clk 0:01:29.7]} 28. Ne5 {[%clk 0:00:26.1]} 28... a4 {[%clk 0:01:29.9]} 29.
Rxf7+ {[%clk 0:00:23.9]} 29... Kg8 {[%clk 0:01:29]} 30. Rb7 {[%clk 0:00:24.4]}
30... a3 {[%clk 0:01:29.1]} 31. Rb1 {[%clk 0:00:24.9]} 31... Ne4 {[%clk
0:01:26.5]} 32. Ra1 {[%clk 0:00:23.9]} 32... a2 {[%clk 0:01:15.9]} 33. f3 {[%clk
0:00:22.3]} 33... Nc3+ {[%clk 0:01:03.7]} 34. Kd2 {[%clk 0:00:22.6]} 34... Nb5
{[%clk 0:01:04.3]} 35. Kc2 {[%clk 0:00:19.9]} 35... Ra3 {[%clk 0:01:02.6]} 36.
Nc6 {[%clk 0:00:15.8]} 36... Rxe3 {[%clk 0:00:59.2]} 37. Kd2 {[%clk 0:00:13.6]}
37... Ra3 {[%clk 0:00:39.9]} 38. Kc2 {[%clk 0:00:13.7]} 38... Ra6 {[%clk
0:00:33.8]} 39. Nb4 {[%clk 0:00:13]} 39... Nxd4+ {[%clk 0:00:33.2]} 40. Kc3
{[%clk 0:00:13.1]} 40... Nb5+ {[%clk 0:00:28.7]} 41. Kb2 {[%clk 0:00:13.3]}
41... Ra4 {[%clk 0:00:29.1]} 42. Nxa2 {[%clk 0:00:12.1]} 42... d4 {[%clk
0:00:29.2]} 43. Re1 {[%clk 0:00:11]} 43... c3+ {[%clk 0:00:26.6]} 44. Kb3 {[%clk
0:00:11]} 44... Ra3+ {[%clk 0:00:26.5]} 45. Kb4 {[%clk 0:00:09.5]} 45... Rxa2
{[%clk 0:00:27]} 46. Kxb5 {[%clk 0:00:08.9]} 46... d3 {[%clk 0:00:27.6]} 47.
Rxe6 {[%clk 0:00:05]} 47... d2 {[%clk 0:00:27.8]} 0-1

[Event "*** Titled Tuesday Blitz"]
[Site "Chess.com"]
[Date "2020.04.21"]
[Round "6"]
[White "SloLev"]
[Black "bancsoo"]
[Result "0-1"]
[WhiteElo "2522"]
[BlackElo "2734"]
[TimeControl "180+1"]
[EndTime "11:09:05 PDT"]
[Termination "bancsoo won on time"]

1. e4 {[%clk 0:03:00.9]} 1... d5 {[%clk 0:03:00.1]} 2. exd5 {[%clk 0:02:58.3]}
2... Qxd5 {[%clk 0:03:01]} 3. Nc3 {[%clk 0:02:58.3]} 3... Qd8 {[%clk 0:03:01.2]}
4. d4 {[%clk 0:02:57.7]} 4... Nf6 {[%clk 0:03:01.6]} 5. Nf3 {[%clk 0:02:58]}
5... g6 {[%clk 0:03:01.9]} 6. Bf4 {[%clk 0:02:56.2]} 6... Bg7 {[%clk 0:03:02.3]}
7. Qd2 {[%clk 0:02:55.5]} 7... a6 {[%clk 0:02:59.1]} 8. O-O-O {[%clk 0:02:53.3]}
8... b5 {[%clk 0:02:58.6]} 9. Bh6 {[%clk 0:02:51.5]} 9... Bxh6 {[%clk
0:02:54.4]} 10. Qxh6 {[%clk 0:02:52.4]} 10... Bb7 {[%clk 0:02:54.8]} 11. Ne5
{[%clk 0:02:47.6]} 11... Qd6 {[%clk 0:02:49.4]} 12. f3 {[%clk 0:02:13.3]} 12...
Nbd7 {[%clk 0:02:49.2]} 13. Qe3 {[%clk 0:02:06.5]} 13... b4 {[%clk 0:02:40]} 14.
Na4 {[%clk 0:01:56.2]} 14... Nd5 {[%clk 0:02:39.7]} 15. Qb3 {[%clk 0:01:52.9]}
15... Nxe5 {[%clk 0:02:32.6]} 16. dxe5 {[%clk 0:01:52.7]} 16... Qxe5 {[%clk
0:02:33.4]} 17. Bc4 {[%clk 0:01:53.1]} 17... Qe3+ {[%clk 0:02:26.5]} 18. Kb1
{[%clk 0:01:51.6]} 18... Qxb3 {[%clk 0:02:26.8]} 19. Bxb3 {[%clk 0:01:47.3]}
19... e6 {[%clk 0:02:22.6]} 20. Nc5 {[%clk 0:01:42.2]} 20... Bc6 {[%clk
0:02:22.5]} 21. Rhe1 {[%clk 0:01:42]} 21... O-O-O {[%clk 0:02:03.8]} 22. Nxa6
{[%clk 0:01:34.8]} 22... Bb5 {[%clk 0:02:03.5]} 23. Bxd5 {[%clk 0:01:34.4]}
23... Bxa6 {[%clk 0:01:58.9]} 24. Be4 {[%clk 0:01:29.1]} 24... c5 {[%clk
0:01:57.6]} 25. c3 {[%clk 0:01:26.7]} 25... bxc3 {[%clk 0:01:56.8]} 26. bxc3
{[%clk 0:01:27.6]} 26... Kc7 {[%clk 0:01:57.5]} 27. Kc2 {[%clk 0:01:26.6]} 27...
Bc4 {[%clk 0:01:57.3]} 28. Rb1 {[%clk 0:01:22.6]} 28... Rb8 {[%clk 0:01:56]} 29.
a3 {[%clk 0:01:22.3]} 29... Bb5 {[%clk 0:01:49.4]} 30. f4 {[%clk 0:01:06]} 30...
Rhd8 {[%clk 0:01:49]} 31. Kc1 {[%clk 0:00:57.4]} 31... h5 {[%clk 0:01:38.4]} 32.
g3 {[%clk 0:00:57.3]} 32... Rd6 {[%clk 0:01:28.2]} 33. Bc2 {[%clk 0:00:55.5]}
33... Ra6 {[%clk 0:01:26.7]} 34. Re5 {[%clk 0:00:50.9]} 34... Rc6 {[%clk
0:01:00.6]} 35. Be4 {[%clk 0:00:50.1]} 35... Rcb6 {[%clk 0:00:55.3]} 36. c4
{[%clk 0:00:41.4]} 36... Bd7 {[%clk 0:00:46.4]} 37. Rxc5+ {[%clk 0:00:38.5]}
37... Kd6 {[%clk 0:00:46.9]} 38. Rxb6+ {[%clk 0:00:38.9]} 38... Rxb6 {[%clk
0:00:47.8]} 39. Ra5 {[%clk 0:00:39.1]} 39... Rb3 {[%clk 0:00:44.6]} 40. Kc2
{[%clk 0:00:36.2]} 40... Re3 {[%clk 0:00:44.5]} 41. c5+ {[%clk 0:00:30.9]} 41...
Ke7 {[%clk 0:00:44.8]} 42. Bd3 {[%clk 0:00:19.6]} 42... Bc6 {[%clk 0:00:41.7]}
43. Kd2 {[%clk 0:00:19.8]} 43... Rf3 {[%clk 0:00:41.7]} 44. Ke2 {[%clk
0:00:20.4]} 44... h4 {[%clk 0:00:41.8]} 45. Ra6 {[%clk 0:00:19.6]} 45... Bd5
{[%clk 0:00:42.3]} 46. gxh4 {[%clk 0:00:12.3]} 46... Rh3 {[%clk 0:00:42.2]} 47.
Ra7+ {[%clk 0:00:09.3]} 47... Kf6 {[%clk 0:00:41.3]} 48. Rc7 {[%clk 0:00:08.5]}
48... Rxh4 {[%clk 0:00:40.8]} 49. Ke3 {[%clk 0:00:08.2]} 49... Rxh2 {[%clk
0:00:39.7]} 50. c6 {[%clk 0:00:05.8]} 50... e5 {[%clk 0:00:38.5]} 51. fxe5+
{[%clk 0:00:05.8]} 51... Kxe5 {[%clk 0:00:38.8]} 52. Re7+ {[%clk 0:00:05.7]}
52... Kd6 {[%clk 0:00:39.2]} 53. c7 {[%clk 0:00:06.1]} 53... Rh8 {[%clk
0:00:39.9]} 0-1

[Event "*** Titled Tuesday Blitz"]
[Site "Chess.com"]
[Date "2020.04.21"]
[Round "6"]
[White "Indianlad"]
[Black "bascheyaro"]
[Result "1/2-1/2"]
[WhiteElo "2979"]
[BlackElo "2717"]
[TimeControl "180+1"]
[EndTime "11:09:06 PDT"]
[Termination "Game drawn - insufficient material"]

1. Nf3 {[%clk 0:03:00.9]} 1... d5 {[%clk 0:02:59.9]} 2. e3 {[%clk 0:03:00.1]}
2... Nf6 {[%clk 0:03:00.3]} 3. c4 {[%clk 0:03:00.1]} 3... c6 {[%clk 0:03:00.3]}
4. Nc3 {[%clk 0:02:59.6]} 4... Bf5 {[%clk 0:03:00.4]} 5. cxd5 {[%clk 0:02:56.7]}
5... Nxd5 {[%clk 0:03:00.4]} 6. Qb3 {[%clk 0:02:54]} 6... Qb6 {[%clk 0:03:00.3]}
7. Nxd5 {[%clk 0:02:53.7]} 7... Qxb3 {[%clk 0:03:00.3]} 8. axb3 {[%clk 0:02:49]}
8... cxd5 {[%clk 0:03:00.6]} 9. Nd4 {[%clk 0:02:47.9]} 9... Bd7 {[%clk
0:03:00.4]} 10. Nb5 {[%clk 0:02:48.2]} 10... Bxb5 {[%clk 0:03:00.3]} 11. Bxb5+
{[%clk 0:02:49]} 11... Nc6 {[%clk 0:02:58.9]} 12. d4 {[%clk 0:02:47.1]} 12... e6
{[%clk 0:02:59]} 13. Bxc6+ {[%clk 0:02:41.3]} 13... bxc6 {[%clk 0:02:59.1]} 14.
Bd2 {[%clk 0:02:41.8]} 14... Kd7 {[%clk 0:02:59.1]} 15. Kd1 {[%clk 0:02:39.5]}
15... Bd6 {[%clk 0:02:59.1]} 16. Kc2 {[%clk 0:02:25]} 16... c5 {[%clk
0:02:58.2]} 17. Bc3 {[%clk 0:02:18.4]} 17... Rhc8 {[%clk 0:02:57.7]} 18. Kd3
{[%clk 0:02:16.6]} 18... f6 {[%clk 0:02:56.2]} 19. Ra6 {[%clk 0:02:16]} 19...
cxd4 {[%clk 0:02:42.6]} 20. Bxd4 {[%clk 0:02:15.7]} 20... e5 {[%clk 0:02:43]}
21. Bxa7 {[%clk 0:01:54.2]} 21... Rc6 {[%clk 0:01:58.7]} 22. Ra4 {[%clk
0:01:27.4]} 22... Rac8 {[%clk 0:01:58]} 23. Rd1 {[%clk 0:01:16.8]} 23... Rc2
{[%clk 0:01:20.7]} 24. Rd2 {[%clk 0:01:17]} 24... Rxd2+ {[%clk 0:01:17.9]} 25.
Kxd2 {[%clk 0:01:17.9]} 25... Rc7 {[%clk 0:01:18.3]} 26. Bb6 {[%clk 0:01:02.6]}
26... Rb7 {[%clk 0:01:18.3]} 27. Ra6 {[%clk 0:01:02.8]} 27... Bb4+ {[%clk
0:01:14.7]} 28. Kd3 {[%clk 0:01:02.8]} 28... Kc6 {[%clk 0:01:08.2]} 29. Bd8+
{[%clk 0:00:53.8]} 29... Kd7 {[%clk 0:01:08]} 30. Bb6 {[%clk 0:00:51.9]} 30...
Kc6 {[%clk 0:01:08.2]} 31. Bd8+ {[%clk 0:00:23.7]} 31... Kb5 {[%clk 0:01:08.5]}
32. Ra8 {[%clk 0:00:22.1]} 32... Rd7 {[%clk 0:01:08.6]} 33. Rb8+ {[%clk
0:00:22.2]} 33... Kc5 {[%clk 0:01:08.8]} 34. f4 {[%clk 0:00:20.1]} 34... Be1
{[%clk 0:00:51.9]} 35. Ke2 {[%clk 0:00:20.6]} 35... Bb4 {[%clk 0:00:48.7]} 36.
Kd3 {[%clk 0:00:20.7]} 36... h5 {[%clk 0:00:36.3]} 37. g3 {[%clk 0:00:20.5]}
37... Be1 {[%clk 0:00:35.4]} 38. Ke2 {[%clk 0:00:19]} 38... Bb4 {[%clk
0:00:35.4]} 39. h3 {[%clk 0:00:19]} 39... d4 {[%clk 0:00:33.4]} 40. exd4+ {[%clk
0:00:19.1]} 40... exd4 {[%clk 0:00:33.7]} 41. Kd3 {[%clk 0:00:19.7]} 41... Be1
{[%clk 0:00:33.8]} 42. g4 {[%clk 0:00:20]} 42... hxg4 {[%clk 0:00:32.8]} 43.
hxg4 {[%clk 0:00:20.9]} 43... Bg3 {[%clk 0:00:33.2]} 44. Bb6+ {[%clk 0:00:18.4]}
44... Kc6 {[%clk 0:00:33.5]} 45. Bxd4 {[%clk 0:00:18.9]} 45... Bxf4 {[%clk
0:00:33.9]} 46. Rb4 {[%clk 0:00:19.5]} 46... Be5 {[%clk 0:00:33.8]} 47. Rc4+
{[%clk 0:00:20.1]} 47... Kb5 {[%clk 0:00:33.7]} 48. Ke4 {[%clk 0:00:20.7]} 48...
Bxd4 {[%clk 0:00:30.7]} 49. Rxd4 {[%clk 0:00:21]} 49... Rxd4+ {[%clk 0:00:30.7]}
50. Kxd4 {[%clk 0:00:21.9]} 50... g6 {[%clk 0:00:31.1]} 51. Kd5 {[%clk
0:00:20.9]} 51... f5 {[%clk 0:00:29.3]} 52. gxf5 {[%clk 0:00:18.7]} 52... gxf5
{[%clk 0:00:29.2]} 53. Ke5 {[%clk 0:00:19.6]} 53... Kb4 {[%clk 0:00:30]} 54.
Kxf5 {[%clk 0:00:20.1]} 54... Kxb3 {[%clk 0:00:30.9]} 55. Ke4 {[%clk 0:00:20.8]}
55... Kxb2 {[%clk 0:00:31.8]} 1/2-1/2

[Event "*** Titled Tuesday Blitz"]
[Site "Chess.com"]
[Date "2020.04.21"]
[Round "6"]
[White "vinniethepooh"]
[Black "WIDBIFS"]
[Result "1/2-1/2"]
[WhiteElo "2632"]
[BlackElo "2774"]
[TimeControl "180+1"]
[EndTime "11:09:08 PDT"]
[Termination "Game drawn - insufficient material"]

1. d4 {[%clk 0:03:00.9]} 1... Nf6 {[%clk 0:02:59.9]} 2. c4 {[%clk 0:03:01.4]}
2... g6 {[%clk 0:03:00.5]} 3. Nc3 {[%clk 0:03:01.9]} 3... Bg7 {[%clk 0:03:01]}
4. e4 {[%clk 0:03:02.2]} 4... O-O {[%clk 0:03:01.7]} 5. Be2 {[%clk 0:03:02.6]}
5... d6 {[%clk 0:03:02.2]} 6. Be3 {[%clk 0:03:03]} 6... Na6 {[%clk 0:03:00.2]}
7. Nf3 {[%clk 0:03:02.6]} 7... e5 {[%clk 0:02:57.3]} 8. O-O {[%clk 0:03:02.9]}
8... Bg4 {[%clk 0:02:54.1]} 9. dxe5 {[%clk 0:03:00.1]} 9... Bxf3 {[%clk
0:02:44.4]} 10. exf6 {[%clk 0:02:58.3]} 10... Bxe2 {[%clk 0:02:44.8]} 11. Nxe2
{[%clk 0:02:59.2]} 11... Qxf6 {[%clk 0:02:41.2]} 12. Bd4 {[%clk 0:02:58.4]}
12... Qe6 {[%clk 0:02:39.2]} 13. Bxg7 {[%clk 0:02:55.8]} 13... Kxg7 {[%clk
0:02:40.1]} 14. Qd4+ {[%clk 0:02:56.5]} 14... Qe5 {[%clk 0:02:39.8]} 15. f3
{[%clk 0:02:51.1]} 15... Rae8 {[%clk 0:02:35.6]} 16. a3 {[%clk 0:02:46.9]} 16...
Nc5 {[%clk 0:02:35.5]} 17. Rad1 {[%clk 0:02:40.3]} 17... f5 {[%clk 0:02:30.9]}
18. b4 {[%clk 0:02:40]} 18... Nd7 {[%clk 0:02:08]} 19. exf5 {[%clk 0:02:35.7]}
19... Rxf5 {[%clk 0:01:58.3]} 20. Ng3 {[%clk 0:02:23.5]} 20... Qxd4+ {[%clk
0:01:51.4]} 21. Rxd4 {[%clk 0:02:24.4]} 21... Rfe5 {[%clk 0:01:51.5]} 22. Rfd1
{[%clk 0:02:13.9]} 22... Nf6 {[%clk 0:01:48.6]} 23. Kf2 {[%clk 0:02:12.3]} 23...
h5 {[%clk 0:01:46.8]} 24. h4 {[%clk 0:02:10.9]} 24... a5 {[%clk 0:01:46.6]} 25.
R4d2 {[%clk 0:01:58.6]} 25... axb4 {[%clk 0:01:42.3]} 26. axb4 {[%clk
0:01:58.6]} 26... Ra8 {[%clk 0:01:43]} 27. Ne2 {[%clk 0:01:40.6]} 27... Ra4
{[%clk 0:01:39.9]} 28. Rb2 {[%clk 0:01:39]} 28... Kf7 {[%clk 0:01:23]} 29. Nc3
{[%clk 0:01:38]} 29... Ra8 {[%clk 0:01:17.9]} 30. Nb5 {[%clk 0:01:37.5]} 30...
Re7 {[%clk 0:01:10.8]} 31. Re1 {[%clk 0:01:29.7]} 31... Rae8 {[%clk 0:01:01.2]}
32. Rbe2 {[%clk 0:01:16.2]} 32... Rxe2+ {[%clk 0:01:01.1]} 33. Rxe2 {[%clk
0:01:17.1]} 33... Rxe2+ {[%clk 0:01:01.9]} 34. Kxe2 {[%clk 0:01:18]} 34... Ne8
{[%clk 0:01:02.7]} 35. Ke3 {[%clk 0:01:12.1]} 35... c6 {[%clk 0:01:01.8]} 36.
Nd4 {[%clk 0:01:10.3]} 36... Ng7 {[%clk 0:00:56.4]} 37. g4 {[%clk 0:01:10.2]}
37... Kf6 {[%clk 0:00:42.1]} 38. Ne2 {[%clk 0:00:51.2]} 38... Ne6 {[%clk
0:00:39.6]} 39. Ng3 {[%clk 0:00:47.9]} 39... hxg4 {[%clk 0:00:35.2]} 40. fxg4
{[%clk 0:00:48.8]} 40... d5 {[%clk 0:00:35.6]} 41. cxd5 {[%clk 0:00:48.7]} 41...
cxd5 {[%clk 0:00:36.5]} 42. h5 {[%clk 0:00:47.5]} 42... gxh5 {[%clk 0:00:35.9]}
43. gxh5 {[%clk 0:00:47.5]} 43... Kg5 {[%clk 0:00:34.4]} 44. Kd3 {[%clk
0:00:37.9]} 44... Kg4 {[%clk 0:00:30]} 45. h6 {[%clk 0:00:30.6]} 45... Kxg3
{[%clk 0:00:23.4]} 46. h7 {[%clk 0:00:30.6]} 46... Nf4+ {[%clk 0:00:23.5]} 47.
Kd4 {[%clk 0:00:31.2]} 47... Ng6 {[%clk 0:00:24.4]} 48. Kxd5 {[%clk 0:00:31.9]}
48... Kf4 {[%clk 0:00:22]} 49. b5 {[%clk 0:00:28.1]} 49... Kf5 {[%clk
0:00:18.3]} 50. b6 {[%clk 0:00:28]} 50... Kf6 {[%clk 0:00:17.5]} 51. Kd6 {[%clk
0:00:28.2]} 51... Kg7 {[%clk 0:00:15.4]} 52. Kc7 {[%clk 0:00:28.6]} 52... Ne5
{[%clk 0:00:15.7]} 53. Kxb7 {[%clk 0:00:29]} 53... Nc4 {[%clk 0:00:16.3]} 54.
Kc7 {[%clk 0:00:29.4]} 54... Nxb6 {[%clk 0:00:16.8]} 55. Kxb6 {[%clk 0:00:30.3]}
55... Kxh7 {[%clk 0:00:17.7]} 1/2-1/2

[Event "*** Titled Tuesday Blitz"]
[Site "Chess.com"]
[Date "2020.04.21"]
[Round "6"]
[White "Adham_Fawzy"]
[Black "Saxar85"]
[Result "0-1"]
[WhiteElo "2762"]
[BlackElo "2608"]
[TimeControl "180+1"]
[EndTime "11:09:08 PDT"]
[Termination "Saxar85 won by checkmate"]

1. e4 {[%clk 0:03:00.9]} 1... e5 {[%clk 0:02:53.8]} 2. Nf3 {[%clk 0:03:00.1]}
2... Nc6 {[%clk 0:02:51.8]} 3. d4 {[%clk 0:03:00.4]} 3... exd4 {[%clk
0:02:49.5]} 4. Bc4 {[%clk 0:03:00.9]} 4... Bc5 {[%clk 0:02:47.3]} 5. O-O {[%clk
0:03:01.3]} 5... d6 {[%clk 0:02:46]} 6. c3 {[%clk 0:03:01.5]} 6... d3 {[%clk
0:02:43.8]} 7. Qxd3 {[%clk 0:03:00.4]} 7... Nf6 {[%clk 0:02:41.8]} 8. Bg5 {[%clk
0:03:00.2]} 8... O-O {[%clk 0:02:38.3]} 9. b4 {[%clk 0:02:59.7]} 9... Bb6 {[%clk
0:02:36.7]} 10. Nbd2 {[%clk 0:02:58.2]} 10... Be6 {[%clk 0:02:32.7]} 11. a4
{[%clk 0:02:57.6]} 11... a6 {[%clk 0:02:29.3]} 12. a5 {[%clk 0:02:55.3]} 12...
Ba7 {[%clk 0:02:28.9]} 13. h3 {[%clk 0:02:46.5]} 13... h6 {[%clk 0:02:20.3]} 14.
Bh4 {[%clk 0:02:46.5]} 14... Ne5 {[%clk 0:02:19.2]} 15. Nxe5 {[%clk 0:02:42]}
15... dxe5 {[%clk 0:02:18.6]} 16. Qe2 {[%clk 0:02:42.2]} 16... Qe7 {[%clk
0:02:14.4]} 17. Nf3 {[%clk 0:02:39.3]} 17... Bxc4 {[%clk 0:01:57.1]} 18. Qxc4
{[%clk 0:02:40.2]} 18... Rad8 {[%clk 0:01:56.2]} 19. Bg3 {[%clk 0:02:34.3]}
19... Qe6 {[%clk 0:01:47.5]} 20. Qxc7 {[%clk 0:02:17.4]} 20... Nxe4 {[%clk
0:01:33.4]} 21. Qxe5 {[%clk 0:02:11.8]} 21... Rfe8 {[%clk 0:01:25.7]} 22. Qxe6
{[%clk 0:02:05]} 22... Rxe6 {[%clk 0:01:25]} 23. Be5 {[%clk 0:02:03.3]} 23...
Nd2 {[%clk 0:01:17.3]} 24. Nxd2 {[%clk 0:02:00.4]} 24... Rxd2 {[%clk 0:01:17.2]}
25. Rae1 {[%clk 0:01:57.3]} 25... Rc2 {[%clk 0:01:04.9]} 26. Bg3 {[%clk
0:01:33.7]} 26... Rxc3 {[%clk 0:01:02.9]} 27. Rxe6 {[%clk 0:01:33.6]} 27... fxe6
{[%clk 0:01:02.6]} 28. Rd1 {[%clk 0:01:31.1]} 28... Rxg3 {[%clk 0:00:59.6]} 29.
Rd8+ {[%clk 0:01:28.9]} 29... Kh7 {[%clk 0:00:58.9]} 30. Rd7 {[%clk 0:01:29.1]}
30... Rb3 {[%clk 0:00:52.9]} 31. Rxb7 {[%clk 0:01:29.1]} 31... Bd4 {[%clk
0:00:52.8]} 32. g4 {[%clk 0:01:25.9]} 32... Rb2 {[%clk 0:00:49.3]} 33. Kg2
{[%clk 0:01:25.5]} 33... Rxf2+ {[%clk 0:00:48]} 34. Kg3 {[%clk 0:01:25.5]} 34...
e5 {[%clk 0:00:45.3]} 35. Rd7 {[%clk 0:01:16.3]} 35... Rb2 {[%clk 0:00:44.2]}
36. Rd6 {[%clk 0:01:16.4]} 36... Rxb4 {[%clk 0:00:40.6]} 37. Rxa6 {[%clk
0:01:16.1]} 37... Rb3+ {[%clk 0:00:39.2]} 38. Kg2 {[%clk 0:01:16.2]} 38... e4
{[%clk 0:00:39.3]} 39. Re6 {[%clk 0:01:15.4]} 39... Rb2+ {[%clk 0:00:36.8]} 40.
Kf1 {[%clk 0:01:14.7]} 40... e3 {[%clk 0:00:35.7]} 41. Re4 {[%clk 0:01:13.5]}
41... Bc5 {[%clk 0:00:30.1]} 42. Re5 {[%clk 0:01:13.6]} 42... Rc2 {[%clk
0:00:28.8]} 43. a6 {[%clk 0:01:12]} 43... Kg6 {[%clk 0:00:27.8]} 44. h4 {[%clk
0:01:07.2]} 44... Kf6 {[%clk 0:00:26.2]} 45. Re4 {[%clk 0:01:07]} 45... g5
{[%clk 0:00:24.2]} 46. h5 {[%clk 0:01:06.6]} 46... Ra2 {[%clk 0:00:22.1]} 47.
Rc4 {[%clk 0:01:01.3]} 47... Bd6 {[%clk 0:00:18.2]} 48. Re4 {[%clk 0:00:52.7]}
48... Bc5 {[%clk 0:00:14.5]} 49. Rc4 {[%clk 0:00:52.1]} 49... e2+ {[%clk
0:00:14.5]} 50. Ke1 {[%clk 0:00:52.4]} 50... Bd6 {[%clk 0:00:13.8]} 51. Kf2
{[%clk 0:00:44.9]} 51... Bg3+ {[%clk 0:00:13]} 52. Kf3 {[%clk 0:00:44.9]} 52...
e1=Q {[%clk 0:00:11.5]} 53. Rc6+ {[%clk 0:00:44.6]} 53... Ke7 {[%clk 0:00:11.5]}
54. Rc7+ {[%clk 0:00:44.5]} 54... Kd6 {[%clk 0:00:11]} 55. Rc5 {[%clk
0:00:45.4]} 55... Kxc5 {[%clk 0:00:09.9]} 56. a7 {[%clk 0:00:43.4]} 56... Ra3+
{[%clk 0:00:09.5]} 57. Kg2 {[%clk 0:00:43.1]} 57... Qf2+ {[%clk 0:00:09.4]} 58.
Kh3 {[%clk 0:00:43]} 58... Qh2# {[%clk 0:00:09.3]} 0-1